Cogmind - Beta 16.1 @@@ ROGUE MODE // 2026.02.14 @ 09:26:49 Player: MrFartsburg Result: Destroyed by BF-L0K(R) with Subdweller Machine Gun Performance ------------- Evolutions (0) 0 Regions Visited (3) 600 Robots Destroyed (21) 105 Value Destroyed (434) 434 Prototype IDs (0) 0 Alien Tech Used (0) 0 Bonus (90) 90 TOTAL SCORE: 1229 Bonus ------- Follower Combat Kills 90 Cogmind --------- Core Integrity 0/250 Matter 208/300 Energy 198/200 System Corruption 0% Temperature Cool (0) Movement Core (300) Ox5 Location -10/Subcaves Parts ------- > --- POWER (1) -------- Subdweller Power Source > --- PROPULSION (2) --- (None) > --- UTILITY (2) ------ Medium Storage Unit Makeshift Hacking Suite > --- WEAPON (2) ------- Welding Torch > --- INVENTORY (10) --- Disposable Heat Sink Small Storage Unit Compact Matter Pod (150) Subdweller Optics Experimental Sensor Array Peak State ------------ > --- POWER ------------ Light Angular Momentum Engine > --- PROPULSION ------- Aluminum Leg Aluminum Leg > --- UTILITY ---------- Medium Storage Unit Light Armor Plating > --- WEAPON ----------- Particle Gun Beamcaster > --- INVENTORY -------- Light Nuclear Core Small Storage Unit Compact Matter Pod Visual Processing Unit Experimental Sensor Array EM Pulse Gun Assault Rifle Grenade Launcher Mining Laser Welding Torch [Rating: 18] Favorites ----------- Power Light Angular Momentum Engine Engine Light Angular Momentum Engine Power Core Light Nuclear Core Propulsion Aluminum Leg Leg Aluminum Leg Wheel Subdweller Monowheel Utility Medium Storage Unit Storage Medium Storage Unit Processor Visual Processing Unit Hackware Makeshift Hacking Suite Protection Light Armor Plating Weapon Beamcaster Energy Gun Beamcaster Energy Cannon Subdweller Beam Cannon Ballistic Gun Assault Rifle Launcher Grenade Launcher Special Weapon Mining Laser Build | -11 -10 -10 -10 ------- Run | Yrd Mat Min Sub Slots Evolved . | . . . . Power . | . . . . Propulsion . | . . . . Utility . | . . . . Weapon . | . . . . Parts Attached 22 | 6 4 5 7 Power 4 | 1 . 2 1 Engine 3 | 1 . 1 1 Core 1 | . . 1 . Reactor . | . . . . Propulsion 3 | 2 . . 1 Treads . | . . . . Leg 2 | 2 . . . Wheel 1 | . . . 1 Hover . | . . . . Flight . | . . . . Utility 5 | 1 2 . 2 Device . | . . . . Storage 2 | 1 1 . . Processor 1 | . . . 1 Hackware 1 | . . . 1 Protection 1 | . 1 . . Artifact . | . . . . Weapon 10 | 2 2 3 3 Energy Gun 3 | . 1 2 . Energy Cannon 1 | . . . 1 Ballistic Gun 3 | 2 . . 1 Ballistic Cannon . | . . . . Launcher 1 | . . . 1 Special Weapon 2 | . 1 1 . Impact Weapon . | . . . . Slashing Weapon . | . . . . Piercing Weapon . | . . . . Special Melee Weapon . | . . . . Unidentified Prototypes . | . . . . Parts Lost 14 | . . . 14 Power 2 | . . . 2 Propulsion 3 | . . . 3 Utility 1 | . . . 1 Weapon 8 | . . . 8 Highest Loss Streak 5 | . . . 5 To Critical Strikes . | . . . . Average Backups 9 | 1 7 9 8 Power . | . 1 . . Propulsion . | 1 2 . . Utility 3 | . 2 3 4 Weapon 3 | . 1 3 3 Tool/Special . | . . . . Unused Backups 10 | . . 5 5 Power 1 | . . 1 . Propulsion 2 | . . 2 . Utility 7 | . . 2 5 Weapon . | . . . . Tool/Special . | . . . . Average Slot Usage (%) 96 | . 99 100 89 Engine 10 | . 14 11 8 Core 1 | . . 2 1 Leg 25 | . 28 28 20 Storage 14 | . 14 14 14 Hackware 1 | . . . 4 Protection 12 | . 13 14 8 Energy Gun 19 | . 10 24 13 Ballistic Gun 4 | . 14 2 3 Special Weapon 2 | . 2 . 6 Peak Build Rating 18 | 6 8 18 18 Average Rating 14 | 3 7 16 14 On Entrance 8 | . 6 8 18 Avg Prop Armor Cover (%) . | . . . . Naked Turns . | . . . . Heaviest Build 30 | 14 22 30 30 Greatest Support 20 | 20 20 20 20 Greatest Overweight (x) 8 | 1 1 1 8 Average Overweight (x) . | . . 1 . Largest Inventory Capacity 10 | 8 10 10 10 Average Capacity 9 | 6 9 10 10 Most Carried 10 | 5 10 10 10 Average Carried 9 | 2 7 9 8 Final Capacity 10 | 8 10 10 10 Final Carried 10 | 4 10 10 5 Class Distribution -------------------- 100% | Mutant Dominant Class ---------------- Mutant | -10/Materials Mutant | -10/Mines Mutant | -10/Subcaves Resources | -11 -10 -10 -10 ----------- Run | Yrd Mat Min Sub Matter Collected 548 | 221 127 88 112 Remotely . | . . . . Salvage Created 517 | . 164 137 216 Parts 44 | . 15 9 20 Haulers Intercepted 1 | . 1 . . Recyclers Shooed 1 | . . 1 . Parts Field Recycled . | . . . . Retrieved Matter . | . . . . Parts Self-Destructed 13 | . . . 13 Prevented . | . . . . Parts Restored . | . . . . Kills | -11 -10 -10 -10 ------- Run | Yrd Mat Min Sub Combat Hostiles Destroyed 18 | . 4 5 9 Guns 15 | . 4 5 6 AOE 3 | . . . 3 Classes Destroyed 6 | . 5 . 1 Worker 1 | . 1 . . Hauler 1 | . 1 . . Watcher 1 | . 1 . . Swarmer 10 | . 3 3 4 Grunt 3 | . 1 2 . Subdweller 5 | . . . 5 Best Kill Streak 5 | . 4 5 4 Combat Bots Only 5 | . 3 5 4 Max Kills in Single Turn 2 | . 2 2 1 Gunslinging 1 | . 1 . . Exploded 1 | . . . 1 Melee . | . . . . Uniques/NPCs Destroyed . | . . . . Combat | -11 -10 -10 -10 -------- Run | Yrd Mat Min Sub Hostile Shots Fired 139 | . 18 6 115 Missed 51 | . 6 3 42 Hits 88 | . 12 3 73 Projectile 88 | . 12 3 73 AOE 5 | . . . 5 Damage Taken 1378 | . 134 37 1207 Core 258 | . . . 258 Absorbed by Shields . | . . . . Core Remaining (%) 100 | 100 . . . Volleys Fired 77 | . 26 10 41 Largest 2 | . 2 2 2 Hottest 175 | . 60 60 175 Shots Fired 124 | . 42 20 62 Gun 86 | . 32 20 34 Cannon 8 | . . . 8 Launcher 9 | . . . 9 Special 21 | . 10 . 11 Kinetic 41 | . 16 10 15 Thermal 47 | . 10 . 37 Explosive 9 | . . . 9 Electromagnetic 27 | . 16 10 1 Robot Hit Streak 12 | . 5 8 12 Robot Miss Streak 5 | . 5 3 3 Penetration Max . | . . . . Secondary Targets 1 | . 1 . . Max Gunslinging Chain 1 | . 1 . . Shots Hit Robots 53 | . 15 13 25 Core Hits 33 | . 8 9 16 Critical Kills 1 | . . 1 . Critical Parts Destroyed . | . . . . Critical Strikes 2 | . . 1 1 Burn 1 | . . . 1 Destroy 1 | . . 1 . Melee Attacks . | . . . . Impact . | . . . . Slashing . | . . . . Piercing . | . . . . Sneak Attacks . | . . . . Combat Hostiles . | . . . . Follow-up Attacks . | . . . . Damage Inflicted 1130 | . 231 171 728 Guns 633 | . 188 166 279 Cannons 111 | . . . 111 Explosions 380 | . 43 . 337 Melee . | . . . . Ramming 6 | . . 5 1 Kinetic 377 | . 118 82 177 Thermal 245 | . 43 . 202 Explosive 337 | . . . 337 Electromagnetic 165 | . 70 84 11 Impact . | . . . . Slashing . | . . . . Piercing . | . . . . Highest Corruption . | . . . . Average Corruption . | . . . . Corruption Purged . | . . . . Corruption Blocked . | . . . . Overload Shots . | . . . . Overflow Damage . | . . . . Projectiles . | . . . . Explosions . | . . . . Melee . | . . . . Knockbacks . | . . . . Impact . | . . . . Kinetic . | . . . . Secondary . | . . . . Self-Inflicted Damage 69 | . 34 . 35 Shots 3 | . 1 . 2 Rammed 1 | . . . 1 Targets Rammed 3 | . . 2 1 Kicked 2 | . . 2 . Crushed . | . . . . Highest Temperature 54 | . 54 45 33 Average Temperature 17 | . 18 19 8 Received Heat Transfer 246 | . . 15 231 Siege Activations . | . . . . Martial Activations . | . . . . Shielding Activations . | . . . . Robots Disrupted . | . . . . Combat Hostiles . | . . . . Robots Corrupted . | . . . . Combat Hostiles . | . . . . Parts Fried . | . . . . Impact Corruptions . | . . . . Robots Melted . | . . . . Combat Hostiles . | . . . . Parts Melted 2 | . . 2 . Heat Transferred 407 | . . . 407 Parts Sabotaged . | . . . . Parts Stolen . | . . . . Parts Stripped . | . . . . Power Chain Reactions 1 | . 1 . . Alert | -11 -10 -10 -10 ------- Run | Yrd Mat Min Sub Maximum Alert Level . | . . . . Low Security (%) 100 | 100 100 100 . Level 1 . | . . . . Level 2 . | . . . . Level 3 . | . . . . Level 4 . | . . . . Level 5 . | . . . . High Security . | . . . . Max Security . | . . . . Peak Influence 94 | . 75 94 . Initial 28 | . . 28 . Average 9 | . 5 10 . Influence Increases 497 | . 120 177 200 Destroy 0b10 Robot/C 300 | . 80 140 80 Destroy 0b10 Robot/NC 15 | . 15 . . Destroy Leader 44 | . 14 30 . Allied During Kill 7 | . . 7 . Successful Hack 8 | . 8 . . Destroy Structure 3 | . 3 . . Lose Combat Pursuer 120 | . . . 120 Influence Decreases 395 | . 45 252 98 Entered New Map 47 | . . 47 . Time Decay 268 | . 45 185 38 Lost Part 60 | . . . 60 Lost Ally 20 | . . 20 . Squads Dispatched . | . . . . Investigation . | . . . . Extermination . | . . . . Reinforcement . | . . . . Assault . | . . . . Garrison . | . . . . Intercept . | . . . . Searches Triggered . | . . . . Construction Impeded . | . . . . Haulers Reinforced . | . . . . Active Scanning Responses . | . . . . Cargo Convoy Interrupts . | . . . . Stealth | -11 -10 -10 -10 --------- Run | Yrd Mat Min Sub Distress Signals 1 | . 1 . . Communications Jammed . | . . . . Distress Signals . | . . . . Times Spotted 31 | . 7 7 17 Peak Tracking Total 6 | . 3 3 6 Tactical Retreats 2 | . . . 2 Traps | -11 -10 -10 -10 ------- Run | Yrd Mat Min Sub Traps Triggered . | . . . . Indirectly . | . . . . Trap Hack Attempts . | . . . . Triggered . | . . . . Disarmed . | . . . . Reprogrammed . | . . . . Reused . | . . . . Traps Extracted . | . . . . Installed . | . . . . Triggered . | . . . . Machines | -11 -10 -10 -10 ---------- Run | Yrd Mat Min Sub Machines Disabled 1 | . . . 1 Max in Single Turn 1 | . . . 1 Machines Repaired . | . . . . Machines Dismantled . | . . . . Machines Sabotaged . | . . . . Overloaded Fab Kills . | . . . . Hacking | -11 -10 -10 -10 --------- Run | Yrd Mat Min Sub Machines Accessed 1 | . 1 . . Terminals 1 | . 1 . . Fabricators . | . . . . Repair Stations . | . . . . Recycling Units . | . . . . Scanalyzers . | . . . . Garrison Access . | . . . . Total Hacks 3 | . 3 . . Successful 2 | . 2 . . Failed 1 | . 1 . . Catastrophic 1 | . 1 . . Database Lockouts . | . . . . Manual . | . . . . Terminals 3 | . 3 . . Fabricators . | . . . . Repair Stations . | . . . . Recycling Units . | . . . . Scanalyzers . | . . . . Garrison Access . | . . . . Terminal Hacks 2 | . 2 . . Maintenance Status 1 | . 1 . . Investigation Status 1 | . 1 . . Fabricator Hacks . | . . . . Repair Station Hacks . | . . . . Recycling Unit Hacks . | . . . . Scanalyzer . | . . . . Garrison Access Hacks . | . . . . Unauthorized Hacks . | . . . . Terminals . | . . . . Fabricators . | . . . . Repair Stations . | . . . . Recycling Units . | . . . . Scanalyzers . | . . . . Garrison Access . | . . . . Data Cores Recovered . | . . . . Used . | . . . . Hacking Detections 1 | . 1 . . Full Trace Events . | . . . . Feedback Events . | . . . . Feedback Blocked . | . . . . Robot Schematics Acquired . | . . . . Robots Built . | . . . . Authchips . | . . . . Time . | . . . . Total Robot Build Rating . | . . . . Part Schematics Acquired . | . . . . Parts Built . | . . . . Authchips . | . . . . Time . | . . . . Total Part Build Rating . | . . . . Part Studies Acquired . | . . . . Parts Repaired . | . . . . Time . | . . . . Parts Recycled . | . . . . Recycled Matter . | . . . . Retrieved Matter . | . . . . Retrieved Components . | . . . . Parts Scanalyzed . | . . . . Part Schematics Acquired . | . . . . Parts Damaged . | . . . . Bothacking | -11 -10 -10 -10 ------------ Run | Yrd Mat Min Sub Used RIF Installer . | . . . . Robots Hacked . | . . . . Non-combat . | . . . . Combat . | . . . . Robot Hacks Applied . | . . . . Relay Couplers Released . | . . . . Fabnet Peak Effective % . | . . . . Robots Rewired . | . . . . Allies Hacked . | . . . . Hacks Repelled . | . . . . Allies | -11 -10 -10 -10 -------- Run | Yrd Mat Min Sub Total Allies 4 | . . 4 . Largest Group 3 | . . 3 3 Highest-Rated Group 40 | . . 40 40 Highest-Rated Ally 31 | . . 31 16 Total Orders . | . . . . Ally Attacks 22 | . . 14 8 Total Damage 339 | . . 230 109 Kills 3 | . . 2 1 Allies Corrupted . | . . . . Allies Melted . | . . . . Intel | -11 -10 -10 -10 ------- Run | Yrd Mat Min Sub Active Infowar (turns) 63 | . . . 63 Optics 63 | . . . 63 Robot Analysis Total . | . . . . Derelict Logs Recovered 1 | . . 1 . Drone Launches . | . . . . Drone Recoveries . | . . . . Exploration | -11 -10 -10 -10 ------------- Run | Yrd Mat Min Sub Turns Passed 2781 | 68 312 1519 882 Spaces Moved 1408 | 49 139 768 452 Core 22 | 11 . . 11 Treads . | . . . . Legs 1255 | 38 139 768 310 Wheels 131 | . . . 131 Hover . | . . . . Flight . | . . . . Fastest Speed 50 | 50 120 190 110 Average Speed 175 | 108 166 190 160 Slowest Speed 450 | 120 190 190 450 Overloaded Moves . | . . . . Propulsion Burnouts . | . . . . Robots Hopped . | . . . . Potential Cave-ins . | . . . . Cave-ins Triggered . | . . . . Exploration Rate (%) 38 | 4 24 98 26 Regions Visited 3 Branch Regions 2 Pre-discovered Areas . | . . . . Known Exits Taken . | . . . . Unknown Exits Taken 3 | 1 1 1 . Scrap Searched 8 | . . 1 7 Spaces Dug . | . . . . Terrain Destroyed 41 | . 2 . 39 Melee . | . . . . Projectile . | . . . . AOE 41 | . 2 . 39 Terrain Rammed . | . . . . Walls Destroyed . | . . . . Machines Disabled . | . . . . Actions | -11 -10 -10 -10 --------- Run | Yrd Mat Min Sub Total 1570 | 64 175 807 524 Wait 14 | . . 8 6 Move 1405 | 48 138 767 452 Hop . | . . . . Pick Up 32 | 10 7 7 8 Fast Attach . | . . . . Attach 18 | 6 1 . 11 Detach . | . . . . Swap 13 | . 3 6 4 Drop 8 | . . 7 1 Fire 77 | . 26 10 41 Melee . | . . . . Ram 1 | . . . 1 Kick 2 | . . 2 . Crush . | . . . . Escape Stasis . | . . . . Rewire . | . . . . Trap . | . . . . Miscellaneous . | . . . . Route ------- -11/Scrapyard -10/Materials -10/Mines (discovered 3 exits: [*Mat x2] / [*Sub]) -10/Subcaves (discovered 2 exits: [*Mat] / [*Rec]) History --------- Turn | Location | Event 4 | -11/Scrapyard | Discovered new exit (range 14) 69 | -11/Scrapyard | Entered Materials 309 | -10/Materials | Build established: Mutant 350 | -10/Materials | Discovered new exit (range 8) 381 | -10/Materials | Entered Mines 384 | -10/Mines | Received a Mining Laser from a helpful Derelict 390 | -10/Mines | Met a Derelict bent on vengeance 404 | -10/Mines | Discovered new exit (range 13) 631 | -10/Mines | Received a Rocket Launcher from a helpful Derelict 771 | -10/Mines | Discovered new exit (range 10) 801 | -10/Mines | Discovered new exit (range 3) 879 | -10/Mines | Joined a pair of Derelicts in attacking an 0b10 outpost 1120 | -10/Mines | Found a damaged Exp. Sensor Array with a note attached 1125 | -10/Mines | Found Prototype Device 1396 | -10/Mines | Assisted by bots powering up and referring to "LRC-V3" 1674 | -10/Mines | Learned Materials garrison access intel 1900 | -10/Mines | Entered Subcaves 1900 | -10/Subcaves | Accompanied by 3 allies 1901 | -10/Subcaves | Approached by a straggling Scientist 2011 | -10/Subcaves | Discovered new exit (range 12) 2487 | -10/Subcaves | Shifting Twisted Machinery released Mak. Hacking Suite 2490 | -10/Subcaves | Shifting Twisted Machinery released Sub. Beam Cannon 2491 | -10/Subcaves | Lost 3 allies 2534 | -10/Subcaves | Core integrity fell below 50% 2577 | -10/Subcaves | Lost 4 parts (2n2w) 2667 | -10/Subcaves | Discovered new exit (range 13) 2697 | -10/Subcaves | Core integrity fell below 20% 2722 | -10/Subcaves | Lost 5 parts (1p4w) 2782 | -10/Subcaves | Destroyed by BF-L0K(R) with Subdweller Machine Gun Last Messages --------------- EXIT=FOUND S-10 Pest springs to life. S-10 Pest destroyed. Assault Rifle destroyed. Sub. Beam Cannon destroyed. Lgt. Nuclear Core destroyed. S-10 Pest destroyed. Lgt. Ion Engine fries itself beyond repair. S-10 Pest destroyed. Lgt. Ion Engine fries itself beyond repair. Lgt. Assault Rifle fries itself beyond repair. Flight Unit fries itself beyond repair. Mining Laser destroyed. Machine disabled. Lgt. Assault Rifle fries itself beyond repair. Flight Unit fries itself beyond repair. Sub. Machine Gun destroyed. Flight Unit fries itself beyond repair. Sub. Monowheel destroyed. Slammed into BF-L0K(R). Map ----- +----------------------------------------------------+ | ?????????????????????????????????????????????????? | | ?????????????????????????????????????????????????? | | ?????????????????????????????????????????????????? | | ?????????????????????????????????????????????????? | | ?????????????????????????????????????????????????? | | ?????????????????????????????????????????????????? | | ?????????????????????????????????????????????????? | | ?????????????????????????????????????????????????? | | ?????????????????????????????????????????????????? | | ?????????????????????????????????????????????????? | | ?????????????????????????????????????????????????? | | ?????????????????????????????????????????????????? | | ?????????????????????????????????????????????????? | | ?????????????????????????????????????????????????? | | ??????????????????????????????????? ????????????? | | ?????????????????????????????????? ????????????? | | ????????????????????????????????? ???????????? | | ???????????????????????????????## ???????????? | | ?????????????????????????????? ?????????????? | | ?????????????????????????????? ??????????????? | | ????????????????????????????? #???????????????? | | ???????????????????????????? #????????????????? | | ??????????###?????????????? ##???????????????? | | ??????????# #????####????# #???????????????? | | ? #??#?### ???## #?### #???????????????? | | ? # # #### ### @ #??????????????????? | | ## ## R #??????????????????? | | ? ## ???????????? | | ????????# # ##?? ???????????? | | ??????????## ## ##???? ########??????????? | | ???????????# #### ####????????????????????????? | | ???????????# #??###???????????????????????????? | | ???????###?## ##??##?###???????????????????????? | | ????#### #?# ### ## #???????????????????????? | | ????# ## #???????????????????????? | | ????# ## #????????????????????????? | | ????# #????????????????????????? | | ??????### ##????????????????????????? | | ????????##### ##?????????????????????????? | | ????????????## ##??????????????????????????? | | ????????????## ###???????????????????????????? | | ?????????#### ##????????????????????????????? | | ?? ###??????????????????????????? | | ?? ## ##?????????????????????????? | | ?? ### ##????????????????????????? | | ??? ## ??# #????????????????????????? | | ?????# ### #??# ### #???????????????????????? | | ?????# ???##??## ##?#####???????????????????????? | | ?????# ??????### #??????????????????????????????? | | ?????????????# #???????????????####???????????? | +----------------------------------------------------+ Best States ------------- Heat Dissipation 25 Energy Generation 18 Energy Capacity 250 Matter Stores 300 Matter Capacity 300 Sight Range 18 Terrain Scan Density 10 Armor Coverage 150 Evasion (%) 55 Offensive Hacking 11 Item Schematics ----------------- None Robot Schematics ------------------ None Fabricated ------------ Nothing Repaired ---------- Nothing Studied --------- None Alien Tech Used ----------------- None Achievements -------------- None Challenges ------------ None Game ------ Seed AnalysisEnergySightfinder Manual? 0 Play Time 00:26:16 Cumulative 14.4 hours Start 2026.02.12 @ 07:00:08 End 2026.02.14 @ 09:26:49 Sessions 5 Manual Loads 0 Difficulty Rogue Special Mode None Game No. 27 Rogue 27 Adventurer 0 Explorer 0 Win Type - Total 0 Types 0/0/0/0/0/0/0/0/0/0 Lore% 9 Gallery% 15 Achievement% 11 Wizard Run 0 Options --------- Layout 1 ASCII 0 Keyboard 0 Movement Numpad Keybinds 0 Fullscreen 1 Font 32/SmallcapsGlow Map View 50x35 Zoom Use 0% Tactical HUD 0 Map Filters NONE Filters NONE Steam 1 RUN: 95b3022b-25e2-4f22-8275-0b86af6b2b66